[Event "XXII Obert Internacional d'Escacs Sant Marti 2022"]
[Site "Barcelona, Spain"]
[Date "2022.07.15"]
[Round "3.7"]
[White "Kandic, Milan"]
[Black "Diermair, Andreas"]
[Result "0-1"]
[TimeControl "1.30 fb 30"]
[WhiteElo "2039"]
[BlackElo "2452"]

1. e4 {[%clk 01:30:57]} {[%emt 00:00:02]} c6 {[%clk 01:30:47]} {[%emt
00:00:14]} 2. Nc3 {[%clk 01:30:37]} {[%emt 00:00:49]} d5 {[%clk 01:31:11]}
{[%emt 00:00:06]} 3. Nf3 {[%clk 01:30:58]} {[%emt 00:00:09]} Bg4 {[%clk
01:31:19]} {[%emt 00:00:22]} 4. h3 {[%clk 01:31:03]} {[%emt 00:00:24]} Bxf3
{[%clk 01:31:40]} {[%emt 00:00:09]} 5. Qxf3 {[%clk 01:31:26]} {[%emt 00:00:07]}
e6 {[%clk 01:31:01]} {[%emt 00:01:10]} 6. d3 {[%clk 01:29:54]} {[%emt
00:02:00]} Nd7 {[%clk 01:30:26]} {[%emt 00:01:08]} 7. g3 {[%clk 01:29:41]}
{[%emt 00:00:43]} Bb4 {[%clk 01:29:20]} {[%emt 00:01:35]} 8. Bd2 {[%clk
01:29:41]} {[%emt 00:00:30]} d4 {[%clk 01:25:59]} {[%emt 00:03:51]} 9. Nb1
{[%clk 01:27:03]} {[%emt 00:03:07]} Qb6 {[%clk 01:25:54]} {[%emt 00:00:36]} 10.
Bg2 {[%clk 01:16:56]} {[%emt 00:10:37]} Bxd2+ {[%clk 01:19:33]} {[%emt
00:06:51]} 11. Nxd2 {[%clk 01:17:17]} {[%emt 00:00:09]} Qxb2 {[%clk 01:19:47]}
{[%emt 00:00:16]} 12. O-O {[%clk 01:17:03]} {[%emt 00:00:43]} Qb4 {[%clk
01:17:48]} {[%emt 00:02:29]} 13. Nc4 {[%clk 01:13:12]} {[%emt 00:04:21]} b5
{[%clk 01:13:29]} {[%emt 00:04:50]} 14. Rab1 {[%clk 01:09:46]} {[%emt
00:03:56]} Qc5 {[%clk 01:12:54]} {[%emt 00:01:04]} 15. Na5 {[%clk 01:08:16]}
{[%emt 00:02:00]} Qb6 {[%clk 01:11:53]} {[%emt 00:01:32]} 16. Nc4 {[%clk
01:05:08]} {[%emt 00:03:38]} Qc7 {[%clk 01:12:08]} {[%emt 00:00:14]} 17. Rxb5
{[%clk 01:02:35]} {[%emt 00:03:03]} cxb5 {[%clk 01:09:29]} {[%emt 00:03:09]} 18.
e5 {[%clk 01:02:20]} {[%emt 00:00:45]} Nb6 {[%clk 01:04:05]} {[%emt 00:05:54]}
19. Nd6+ {[%clk 00:52:24]} {[%emt 00:10:26]} Kf8 {[%clk 01:04:29]} {[%emt
00:00:06]} 20. Qf4 {[%clk 00:49:25]} {[%emt 00:03:29]} Rd8 {[%clk 01:03:37]}
{[%emt 00:01:21]} 21. Nxb5 {[%clk 00:49:00]} {[%emt 00:00:56]} Qd7 {[%clk
01:02:07]} {[%emt 00:02:00]} 22. Nd6 {[%clk 00:43:29]} {[%emt 00:06:01]} f5
{[%clk 00:47:51]} {[%emt 00:14:46]} 23. Qxd4 {[%clk 00:40:37]} {[%emt
00:03:21]} Nc8 {[%clk 00:46:30]} {[%emt 00:01:52]} 24. Rb1 {[%clk 00:38:03]}
{[%emt 00:03:04]} Nxd6 {[%clk 00:46:27]} {[%emt 00:00:33]} 25. exd6 {[%clk
00:38:24]} {[%emt 00:00:08]} Qxd6 {[%clk 00:46:32]} {[%emt 00:00:25]} 26. Qxa7
{[%clk 00:38:39]} {[%emt 00:00:16]} Ne7 {[%clk 00:45:48]} {[%emt 00:01:13]} 27.
Rb6 {[%clk 00:33:24]} {[%emt 00:05:46]} Qc5 {[%clk 00:43:04]} {[%emt 00:03:14]}
28. Qa6 {[%clk 00:31:34]} {[%emt 00:02:19]} Qxc2 {[%clk 00:36:52]} {[%emt
00:06:43]} 29. Rxe6 {[%clk 00:19:05]} {[%emt 00:12:59]} Qxd3 {[%clk 00:36:30]}
{[%emt 00:00:51]} 30. Qb7 {[%clk 00:18:16]} {[%emt 00:01:19]} Qd7 {[%clk
00:36:24]} {[%emt 00:00:37]} 31. Qa6 {[%clk 00:17:23]} {[%emt 00:01:23]} Kf7
{[%clk 00:34:54]} {[%emt 00:01:59]} 32. Rb6 {[%clk 00:17:47]} {[%emt 00:00:07]}
Qd3 {[%clk 00:31:41]} {[%emt 00:03:41]} 33. Qa7 {[%clk 00:14:02]} {[%emt
00:04:17]} Rd7 {[%clk 00:31:28]} {[%emt 00:00:42]} 34. Qa5 {[%clk 00:13:34]}
{[%emt 00:00:59]} Rhd8 {[%clk 00:27:30]} {[%emt 00:04:28]} 35. Qe5 {[%clk
00:11:13]} {[%emt 00:02:51]} Rd6 {[%clk 00:27:24]} {[%emt 00:00:36]} 36. Rb7
{[%clk 00:10:23]} {[%emt 00:01:20]} R8d7 {[%clk 00:26:31]} {[%emt 00:01:23]} 37.
Rb8 {[%clk 00:10:03]} {[%emt 00:00:50]} Re6 {[%clk 00:26:27]} {[%emt 00:00:33]}
0-1

[Event "XXII Obert Internacional d'Escacs Sant Marti 2022"]
[Site "Barcelona, Spain"]
[Date "2022.07.15"]
[Round "3.8"]
[White "Nambiar, Vivek"]
[Black "Valenzuela Gomez, Fernando"]
[Result "0-1"]
[TimeControl "1.30 fb 30"]
[WhiteElo "1870"]
[BlackElo "2373"]

1. Nf3 {[%clk 01:24:51]} {[%emt 00:06:08]} d5 {[%clk 01:30:30]} {[%emt
00:00:28]} 2. c4 {[%clk 01:25:18]} {[%emt 00:00:05]} d4 {[%clk 01:30:39]}
{[%emt 00:00:20]} 3. g3 {[%clk 01:25:31]} {[%emt 00:00:17]} Nc6 {[%clk
01:30:29]} {[%emt 00:00:42]} 4. Bg2 {[%clk 01:25:54]} {[%emt 00:00:07]} e5
{[%clk 01:30:52]} {[%emt 00:00:07]} 5. d3 {[%clk 01:26:13]} {[%emt 00:00:11]}
Bc5 {[%clk 01:30:34]} {[%emt 00:00:48]} 6. O-O {[%clk 01:26:18]} {[%emt
00:00:24]} Nge7 {[%clk 01:30:37]} {[%emt 00:00:28]} 7. Na3 {[%clk 01:24:44]}
{[%emt 00:02:04]} Bxa3 {[%clk 01:26:10]} {[%emt 00:04:56]} 8. bxa3 {[%clk
01:23:09]} {[%emt 00:02:05]} O-O {[%clk 01:26:37]} {[%emt 00:00:03]} 9. Rb1
{[%clk 01:22:51]} {[%emt 00:00:49]} Rb8 {[%clk 01:27:01]} {[%emt 00:00:06]} 10.
a4 {[%clk 01:18:26]} {[%emt 00:04:56]} Bg4 {[%clk 01:23:27]} {[%emt 00:04:03]}
11. h3 {[%clk 01:12:54]} {[%emt 00:06:01]} Bf5 {[%clk 01:18:50]} {[%emt
00:05:09]} 12. Ba3 {[%clk 01:09:28]} {[%emt 00:03:56]} Re8 {[%clk 01:17:54]}
{[%emt 00:01:25]} 13. Nd2 {[%clk 00:54:28]} {[%emt 00:15:30]} b6 {[%clk
01:04:19]} {[%emt 00:14:05]} 14. f4 {[%clk 00:49:55]} {[%emt 00:05:04]} exf4
{[%clk 01:01:39]} {[%emt 00:03:10]} 15. Rxf4 {[%clk 00:50:07]} {[%emt
00:00:18]} Be6 {[%clk 00:56:03]} {[%emt 00:06:07]} 16. Qf1 {[%clk 00:42:18]}
{[%emt 00:08:18]} Ne5 {[%clk 00:52:54]} {[%emt 00:03:40]} 17. a5 {[%clk
00:30:37]} {[%emt 00:12:10]} N7g6 {[%clk 00:51:32]} {[%emt 00:01:52]} 18. axb6
{[%clk 00:29:31]} {[%emt 00:01:36]} axb6 {[%clk 00:51:34]} {[%emt 00:00:29]} 19.
Rf2 {[%clk 00:24:38]} {[%emt 00:05:22]} c5 {[%clk 00:51:26]} {[%emt 00:00:38]}
20. Bc1 {[%clk 00:24:19]} {[%emt 00:00:49]} Bc8 {[%clk 00:46:05]} {[%emt
00:05:51]} 21. Ne4 {[%clk 00:22:24]} {[%emt 00:02:26]} Bb7 {[%clk 00:43:07]}
{[%emt 00:03:28]} 22. h4 {[%clk 00:21:03]} {[%emt 00:01:51]} h6 {[%clk
00:33:48]} {[%emt 00:09:48]} 23. h5 {[%clk 00:20:30]} {[%emt 00:01:04]} Nf8
{[%clk 00:33:06]} {[%emt 00:01:12]} 24. Bf4 {[%clk 00:16:47]} {[%emt 00:04:14]}
Nfd7 {[%clk 00:28:23]} {[%emt 00:05:12]} 25. Nd6 {[%clk 00:14:45]} {[%emt
00:02:31]} Bxg2 {[%clk 00:28:41]} {[%emt 00:00:13]} 26. Qxg2 {[%clk 00:14:32]}
{[%emt 00:00:43]} Rf8 {[%clk 00:25:05]} {[%emt 00:04:06]} 27. Qe4 {[%clk
00:11:19]} {[%emt 00:03:43]} Ng4 {[%clk 00:23:39]} {[%emt 00:01:56]} 28. Rf3
{[%clk 00:11:11]} {[%emt 00:00:39]} Ndf6 {[%clk 00:23:20]} {[%emt 00:00:49]} 29.
Qf5 {[%clk 00:07:03]} {[%emt 00:04:37]} Ra8 {[%clk 00:23:15]} {[%emt 00:00:36]}
30. Rb2 {[%clk 00:06:12]} {[%emt 00:01:20]} Qd7 {[%clk 00:19:08]} {[%emt
00:04:38]} 31. Qxd7 {[%clk 00:06:00]} {[%emt 00:00:42]} Nxd7 {[%clk 00:19:36]}
{[%emt 00:00:02]} 32. Ne4 {[%clk 00:05:02]} {[%emt 00:01:27]} Ra6 {[%clk
00:19:09]} {[%emt 00:00:57]} 33. Kg2 {[%clk 00:02:18]} {[%emt 00:03:13]} Rfa8
{[%clk 00:17:40]} {[%emt 00:02:00]} 34. Kh3 {[%clk 00:02:42]} {[%emt 00:00:05]}
Nge5 {[%clk 00:13:18]} {[%emt 00:04:52]} 35. Rf1 {[%clk 00:01:26]} {[%emt
00:01:45]} Rxa2 {[%clk 00:12:31]} {[%emt 00:01:18]} 36. Rfb1 {[%clk 00:01:55]}
Rxb2 {[%clk 00:10:48]} {[%emt 00:02:13]} 37. Rxb2 {[%clk 00:02:24]} {[%emt
00:00:02]} Nc6 {[%clk 00:10:36]} {[%emt 00:00:42]} 38. Bd2 {[%clk 00:01:52]}
{[%emt 00:01:01]} Re8 {[%clk 00:10:18]} {[%emt 00:00:47]} 39. g4 {[%clk
00:02:00]} {[%emt 00:00:22]} Nce5 {[%clk 00:09:23]} {[%emt 00:01:26]} 40. Nd6
{[%clk 00:01:23]} {[%emt 00:01:07]} Re6 {[%clk 00:08:55]} {[%emt 00:00:58]} 41.
Nf5 {[%clk 00:01:42]} {[%emt 00:00:10]} Nf6 {[%clk 00:08:41]} {[%emt 00:00:45]}
42. g5 {[%clk 00:00:58]} {[%emt 00:01:14]} hxg5 {[%clk 00:09:05]} {[%emt
00:00:06]} 43. Bxg5 {[%clk 00:00:47]} {[%emt 00:00:41]} Nxh5 {[%clk 00:09:11]}
{[%emt 00:00:24]} 44. Ne7+ {[%clk 00:00:50]} {[%emt 00:00:27]} Kh7 {[%clk
00:08:57]} {[%emt 00:00:45]} 45. Nd5 {[%clk 00:01:03]} {[%emt 00:00:16]} f6
{[%clk 00:08:52]} {[%emt 00:00:35]} 46. Bc1 {[%clk 00:00:53]} {[%emt 00:00:40]}
Nd7 {[%clk 00:09:13]} {[%emt 00:00:09]} 47. Kg4 {[%clk 00:01:00]} {[%emt
00:00:23]} Kg6 {[%clk 00:08:23]} {[%emt 00:01:21]} 48. e3 {[%clk 00:00:40]}
{[%emt 00:00:49]} Ne5+ {[%clk 00:08:28]} {[%emt 00:00:25]} 49. Kh4 {[%clk
00:00:53]} {[%emt 00:00:18]} Nxd3 {[%clk 00:08:06]} {[%emt 00:00:51]} 50. Rg2+
{[%clk 00:01:05]} {[%emt 00:00:17]} Kh6 {[%clk 00:08:20]} {[%emt 00:00:16]} 51.
Bd2 {[%clk 00:01:00]} {[%emt 00:00:35]} Re4+ {[%clk 00:08:34]} {[%emt
00:00:16]} 52. Kh3 {[%clk 00:01:05]} {[%emt 00:00:26]} dxe3 {[%clk 00:07:57]}
{[%emt 00:01:08]} 53. Bxe3+ {[%clk 00:00:56]} {[%emt 00:00:37]} Rxe3+ {[%clk
00:07:53]} {[%emt 00:00:35]} 54. Nxe3 {[%clk 00:01:16]} {[%emt 00:00:10]} Nhf4+
{[%clk 00:08:20]} {[%emt 00:00:03]} 55. Kg3 {[%clk 00:01:34]} {[%emt 00:00:11]}
Nxg2 {[%clk 00:08:47]} {[%emt 00:00:04]} 56. Kxg2 {[%clk 00:01:57]} {[%emt
00:00:07]} Ne5 {[%clk 00:09:12]} {[%emt 00:00:05]} 0-1

[Event "XXII Obert Internacional d'Escacs Sant Marti 2022"]
[Site "Barcelona, Spain"]
[Date "2022.07.15"]
[Round "3.9"]
[White "Roshka, Yevgeniy"]
[Black "Kshatriya, Nitin Vekhande"]
[Result "1-0"]
[TimeControl "1.30 fb 30"]
[WhiteElo "2497"]
[BlackElo "1782"]

1. Nf3 {[%clk 01:22:31]} {[%emt 00:08:22]} Nf6 {[%clk 01:30:58]} {[%emt
00:00:08]} 2. g3 {[%clk 01:22:53]} {[%emt 00:00:08]} g6 {[%clk 01:31:23]}
{[%emt 00:00:05]} 3. b3 {[%clk 01:22:16]} {[%emt 00:01:07]} Bg7 {[%clk
01:31:46]} {[%emt 00:00:07]} 4. Bb2 {[%clk 01:22:43]} {[%emt 00:00:02]} O-O
{[%clk 01:32:07]} {[%emt 00:00:10]} 5. Bg2 {[%clk 01:23:10]} {[%emt 00:00:03]}
d6 {[%clk 01:32:30]} {[%emt 00:00:07]} 6. d4 {[%clk 01:23:04]} {[%emt
00:00:36]} Nbd7 {[%clk 01:31:53]} {[%emt 00:01:07]} 7. O-O {[%clk 01:23:11]}
{[%emt 00:00:23]} c6 {[%clk 01:32:04]} {[%emt 00:00:20]} 8. c4 {[%clk
01:22:15]} {[%emt 00:01:25]} Qc7 {[%clk 01:29:53]} {[%emt 00:02:41]} 9. Nc3
{[%clk 01:21:37]} {[%emt 00:01:08]} Re8 {[%clk 01:28:07]} {[%emt 00:02:17]} 10.
e4 {[%clk 01:16:45]} {[%emt 00:05:21]} e5 {[%clk 01:27:49]} {[%emt 00:00:48]}
11. d5 {[%clk 01:17:03]} {[%emt 00:00:12]} c5 {[%clk 01:27:43]} {[%emt
00:00:35]} 12. Ne1 {[%clk 01:16:49]} {[%emt 00:00:42]} Nf8 {[%clk 01:26:53]}
{[%emt 00:01:23]} 13. Nd3 {[%clk 01:16:29]} {[%emt 00:00:49]} h5 {[%clk
01:26:12]} {[%emt 00:01:11]} 14. f4 {[%clk 01:12:39]} {[%emt 00:04:21]} exf4
{[%clk 01:22:56]} {[%emt 00:03:45]} 15. gxf4 {[%clk 01:13:07]} {[%emt
00:00:02]} Ng4 {[%clk 01:22:29]} {[%emt 00:00:58]} 16. Nb5 {[%clk 01:12:47]}
{[%emt 00:00:49]} Qd8 {[%clk 01:22:28]} {[%emt 00:00:31]} 17. Bxg7 {[%clk
01:13:07]} {[%emt 00:00:11]} Kxg7 {[%clk 01:22:56]} {[%emt 00:00:02]} 18. Qd2
{[%clk 01:13:18]} {[%emt 00:00:18]} a6 {[%clk 01:23:05]} {[%emt 00:00:22]} 19.
Nc3 {[%clk 01:13:37]} {[%emt 00:00:10]} f5 {[%clk 01:14:53]} {[%emt 00:08:42]}
20. e5 {[%clk 01:05:25]} {[%emt 00:08:42]} dxe5 {[%clk 01:14:28]} {[%emt
00:00:55]} 21. h3 {[%clk 01:05:54]} {[%emt 00:00:01]} e4 {[%clk 01:13:46]}
{[%emt 00:01:13]} 22. hxg4 {[%clk 01:06:22]} {[%emt 00:00:02]} exd3 {[%clk
01:14:07]} {[%emt 00:00:08]} 23. g5 {[%clk 01:06:50]} {[%emt 00:00:01]} Qd6
{[%clk 01:13:34]} {[%emt 00:01:04]} 24. Rae1 {[%clk 01:04:18]} {[%emt
00:03:01]} Bd7 {[%clk 01:13:56]} {[%emt 00:00:09]} 25. Nd1 {[%clk 01:04:16]}
{[%emt 00:00:31]} b5 {[%clk 01:09:53]} {[%emt 00:04:35]} 26. Nb2 {[%clk
01:04:34]} {[%emt 00:00:11]} Re2 {[%clk 01:07:56]} {[%emt 00:02:27]} 27. Rxe2
{[%clk 01:03:14]} {[%emt 00:01:50]} dxe2 {[%clk 01:08:14]} {[%emt 00:00:11]} 28.
Qxe2 {[%clk 01:03:42]} {[%emt 00:00:02]} Re8 {[%clk 01:08:28]} {[%emt
00:00:17]} 29. Qf2 {[%clk 01:01:28]} {[%emt 00:02:44]} Bc8 {[%clk 01:04:30]}
{[%emt 00:04:29]} 30. Nd3 {[%clk 01:01:51]} {[%emt 00:00:06]} Nd7 {[%clk
01:01:41]} {[%emt 00:03:19]} 31. b4 {[%clk 01:01:58]} {[%emt 00:00:23]} bxc4
{[%clk 01:01:17]} {[%emt 00:00:54]} 32. bxc5 {[%clk 01:02:23]} {[%emt
00:00:05]} Qb8 {[%clk 00:58:23]} {[%emt 00:03:24]} 33. Qd4+ {[%clk 01:02:36]}
{[%emt 00:00:17]} Kh7 {[%clk 00:58:15]} {[%emt 00:00:38]} 34. Qxc4 {[%clk
01:02:53]} {[%emt 00:00:13]} Re2 {[%clk 00:57:14]} {[%emt 00:01:30]} 35. d6
{[%clk 01:00:14]} {[%emt 00:03:09]} Qb5 {[%clk 00:52:36]} {[%emt 00:05:08]} 36.
Qf7+ {[%clk 01:00:01]} {[%emt 00:00:43]} Kh8 {[%clk 00:52:55]} {[%emt
00:00:12]} 37. Bd5 {[%clk 01:00:28]} {[%emt 00:00:02]} Nf6 {[%clk 00:52:10]}
{[%emt 00:01:16]} 38. Qxf6+ {[%clk 01:00:49]} {[%emt 00:00:09]} Kh7 {[%clk
00:52:33]} {[%emt 00:00:08]} 39. Qf7+ {[%clk 01:01:17]} {[%emt 00:00:01]} Kh8
{[%clk 00:52:55]} {[%emt 00:00:08]} 40. Qg8# {[%clk 01:01:45]} {[%emt
00:00:01]} 1-0

[Event "XXII Obert Internacional d'Escacs Sant Marti 2022"]
[Site "Barcelona, Spain"]
[Date "2022.07.15"]
[Round "3.10"]
[White "Greeshma, Anand Dhumal"]
[Black "Munoz, Miguel"]
[Result "0-1"]
[TimeControl "1.30 fb 30"]
[WhiteElo "1749"]
[BlackElo "2408"]

1. d4 {[%clk 01:30:51]} {[%emt 00:00:08]} Nf6 {[%clk 01:30:50]} {[%emt
00:00:11]} 2. c4 {[%clk 01:31:07]} {[%emt 00:00:13]} g6 {[%clk 01:31:10]}
{[%emt 00:00:10]} 3. Nc3 {[%clk 01:31:14]} {[%emt 00:00:23]} Bg7 {[%clk
01:31:34]} {[%emt 00:00:06]} 4. e4 {[%clk 01:31:26]} {[%emt 00:00:18]} O-O
{[%clk 01:31:58]} {[%emt 00:00:07]} 5. Nf3 {[%clk 01:31:16]} {[%emt 00:00:40]}
d6 {[%clk 01:32:17]} {[%emt 00:00:11]} 6. Be2 {[%clk 01:31:09]} {[%emt
00:00:36]} e5 {[%clk 01:32:16]} {[%emt 00:00:31]} 7. d5 {[%clk 01:29:16]}
{[%emt 00:02:23]} a5 {[%clk 01:31:56]} {[%emt 00:00:50]} 8. h3 {[%clk
01:28:06]} {[%emt 00:01:40]} Nh5 {[%clk 01:30:09]} {[%emt 00:02:17]} 9. Be3
{[%clk 01:24:19]} {[%emt 00:04:16]} Nf4 {[%clk 01:30:06]} {[%emt 00:00:34]} 10.
O-O {[%clk 01:23:37]} {[%emt 00:01:12]} Nxe2+ {[%clk 01:30:05]} {[%emt
00:00:32]} 11. Qxe2 {[%clk 01:23:39]} {[%emt 00:00:27]} f5 {[%clk 01:30:15]}
{[%emt 00:00:21]} 12. exf5 {[%clk 01:19:35]} {[%emt 00:04:34]} gxf5 {[%clk
01:30:33]} {[%emt 00:00:12]} 13. Ne1 {[%clk 01:15:40]} {[%emt 00:04:24]} f4
{[%clk 01:29:13]} {[%emt 00:01:51]} 14. Bd2 {[%clk 01:15:27]} {[%emt 00:00:41]}
Bf5 {[%clk 01:29:35]} {[%emt 00:00:09]} 15. Ne4 {[%clk 01:13:21]} {[%emt
00:02:36]} Qe8 {[%clk 01:27:39]} {[%emt 00:02:27]} 16. Kh2 {[%clk 01:09:46]}
{[%emt 00:04:04]} Qg6 {[%clk 01:27:13]} {[%emt 00:00:57]} 17. f3 {[%clk
01:08:51]} {[%emt 00:01:25]} Nd7 {[%clk 01:27:27]} {[%emt 00:00:16]} 18. Nd3
{[%clk 01:07:35]} {[%emt 00:01:45]} Nf6 {[%clk 01:23:10]} {[%emt 00:04:47]} 19.
Nxf6+ {[%clk 01:05:20]} {[%emt 00:02:45]} Rxf6 {[%clk 01:21:47]} {[%emt
00:01:53]} 20. Nf2 {[%clk 01:03:38]} {[%emt 00:02:12]} Qg3+ {[%clk 01:22:01]}
{[%emt 00:00:16]} 21. Kh1 {[%clk 01:03:43]} {[%emt 00:00:24]} Rg6 {[%clk
01:22:06]} {[%emt 00:00:26]} 22. Ne4 {[%clk 01:02:46]} {[%emt 00:01:26]} Qh4
{[%clk 01:21:54]} {[%emt 00:00:43]} 23. Rac1 {[%clk 00:56:32]} {[%emt
00:06:45]} b6 {[%clk 01:21:21]} {[%emt 00:01:03]} 24. b3 {[%clk 00:47:18]}
{[%emt 00:09:45]} Kh8 {[%clk 01:20:54]} {[%emt 00:00:56]} 25. a3 {[%clk
00:28:17]} {[%emt 00:19:32]} Rg8 {[%clk 01:21:02]} {[%emt 00:00:21]} 26. Qe1
{[%clk 00:26:07]} {[%emt 00:02:40]} Qh5 {[%clk 01:20:40]} {[%emt 00:00:52]} 27.
Qe2 {[%clk 00:21:54]} {[%emt 00:04:43]} Bf8 {[%clk 01:19:04]} {[%emt 00:02:06]}
28. Rf2 {[%clk 00:22:09]} {[%emt 00:00:15]} Be7 {[%clk 01:19:01]} {[%emt
00:00:33]} 29. Qf1 {[%clk 00:17:48]} {[%emt 00:04:50]} Bh4 {[%clk 01:04:18]}
{[%emt 00:15:13]} 30. Re2 {[%clk 00:17:13]} {[%emt 00:01:05]} Bxh3 {[%clk
01:02:25]} {[%emt 00:02:24]} 31. gxh3 {[%clk 00:17:20]} {[%emt 00:00:22]} Rg1+
{[%clk 01:02:51]} {[%emt 00:00:03]} 32. Qxg1 {[%clk 00:17:08]} {[%emt
00:00:42]} Rxg1+ {[%clk 01:03:16]} {[%emt 00:00:06]} 33. Kxg1 {[%clk 00:17:01]}
{[%emt 00:00:37]} Qxf3 {[%clk 01:03:36]} {[%emt 00:00:11]} 34. Nc3 {[%clk
00:15:44]} {[%emt 00:01:46]} Qd3 {[%clk 01:03:14]} {[%emt 00:00:52]} 35. Be1
{[%clk 00:11:28]} {[%emt 00:04:46]} f3 {[%clk 00:59:37]} {[%emt 00:04:08]} 36.
Re4 {[%clk 00:05:23]} {[%emt 00:06:35]} Bxe1 {[%emt 00:00:50]} 37. Rexe1 {[%clk
00:03:48]} {[%emt 00:02:00]} Qd2 {[%clk 00:59:15]} {[%emt 00:00:36]} 38. Ne2
{[%clk 00:03:51]} {[%emt 00:00:26]} Qe3+ {[%clk 00:58:51]} {[%emt 00:00:55]} 39.
Kf1 {[%clk 00:03:07]} {[%emt 00:01:13]} fxe2+ {[%clk 00:59:05]} {[%emt
00:00:17]} 40. Kg2 {[%clk 00:03:35]} {[%emt 00:00:02]} e4 {[%clk 00:59:10]}
{[%emt 00:00:26]} 41. Rb1 {[%emt 00:02:17]} Kg7 {[%clk 00:58:23]} {[%emt
00:01:14]} 42. Kh2 {[%clk 00:01:46]} {[%emt 00:00:33]} Qf2+ {[%clk 00:58:39]}
{[%emt 00:00:16]} 43. Kh1 {[%clk 00:01:55]} {[%emt 00:00:21]} Kh6 {[%clk
00:58:49]} {[%emt 00:00:22]} 44. Rg1 {[%clk 00:01:27]} {[%emt 00:00:56]} Kh5
{[%clk 00:59:02]} {[%emt 00:00:17]} 45. b4 {[%clk 00:01:25]} {[%emt 00:00:33]}
Kh4 {[%clk 00:58:48]} {[%emt 00:00:44]} 46. Rbe1 {[%clk 00:00:35]} {[%emt
00:01:19]} Kxh3 {[%clk 00:58:58]} {[%emt 00:00:21]} 0-1